Cogmind - Beta 12 @@@ ROGUE MODE // 2024.02.20 @ 23:11:45 Player: Utheran Result: Destroyed by as-98079 with Assembled Heavy Rifle Performance ------------- Evolutions (0) 0 Regions Visited (4) 800 Robots Destroyed (35) 175 Value Destroyed (835) 835 Prototype IDs (2) 40 Alien Tech Used (0) 0 Bonus (300) 300 TOTAL SCORE: 2150 Bonus ------- Aligned with FarCom 300 Cogmind --------- Core Integrity 0/250 Matter 300/300 Energy 263/265 System Corruption 0% Temperature Cool (1) Movement Walking (260) Ox2 Location -9/Mines Parts ------- > --- POWER (1) -------- Improved Ion Engine > --- PROPULSION (2) --- Aluminum Leg > --- UTILITY (2) ------ Heat Sink Medium Storage Unit > --- WEAPON (2) ------- Particle Cannon Particle Cannon > --- INVENTORY (10) --- Improved Ion Engine Light Nuclear Core Fission Core Improved Heat Sink Improved Heat Sink High-capacity Battery (250) Chronowheel Rocket Launcher EMP Trap EMP Trap Peak State ------------ > --- POWER ------------ Improved Ion Engine > --- PROPULSION ------- Aluminum Leg Aluminum Leg > --- UTILITY ---------- Heat Sink Medium Storage Unit > --- WEAPON ----------- Particle Cannon Particle Cannon > --- INVENTORY -------- Improved Ion Engine Light Nuclear Core Fission Core Improved Heat Sink Improved Heat Sink High-capacity Battery Chronowheel Rocket Launcher [Rating: 13] Favorites ----------- Power Improved Ion Engine Engine Improved Ion Engine Propulsion Aluminum Leg Treads Light Treads Leg Aluminum Leg Utility Medium Storage Unit Device Heat Sink Storage Medium Storage Unit Weapon Particle Cannon Energy Gun Improved Medium Laser Energy Cannon Particle Cannon Launcher Rocket Launcher Build | -11 -10 -10 -10 -9 ------- Run | Jun Mat Min Exi Min Slots Evolved . | . . . . . Power . | . . . . . Propulsion . | . . . . . Utility . | . . . . . Weapon . | . . . . . Parts Attached 27 | 6 12 8 1 . Power 4 | 1 1 1 1 . Engine 4 | 1 1 1 1 . Core . | . . . . . Reactor . | . . . . . Propulsion 4 | 2 2 . . . Treads 2 | 2 . . . . Leg 2 | . 2 . . . Wheel . | . . . . . Hover . | . . . . . Flight . | . . . . . Utility 4 | 1 3 . . . Device 1 | . 1 . . . Storage 3 | 1 2 . . . Processor . | . . . . . Hackware . | . . . . . Protection . | . . . . . Artifact . | . . . . . Weapon 15 | 2 6 7 . . Energy Gun 6 | 2 3 1 . . Energy Cannon 6 | . 3 3 . . Ballistic Gun . | . . . . . Ballistic Cannon . | . . . . . Launcher 3 | . . 3 . . Special Weapon . | . . . . . Impact Weapon . | . . . . . Slashing Weapon . | . . . . . Piercing Weapon . | . . . . . Special Melee Weapon . | . . . . . Unidentified Prototypes . | . . . . . Parts Lost 5 | . 2 2 . 1 Power 3 | . 1 2 . . Propulsion 2 | . 1 . . 1 Utility . | . . . . . Weapon . | . . . . . Highest Loss Streak 1 | . 1 1 . 1 To Critical Strikes . | . . . . . Average Slot Usage (%) 96 | . 92 98 99 92 Engine 13 | . 13 12 13 14 Treads 4 | . 12 . . . Leg 23 | . 14 28 28 21 Device 12 | . 8 14 14 14 Storage 13 | . 13 14 14 14 Energy Gun 7 | . 15 6 . . Energy Cannon 20 | . 12 20 28 28 Naked Turns . | . . . . . Heaviest Build 26 | 12 21 26 26 26 Greatest Support 40 | 40 40 20 20 20 Greatest Overweight (x) 2 | 2 1 1 1 2 Average Overweight (x) . | . . . . 1 Largest Inventory Capacity 10 | 8 10 10 10 10 Average Capacity 9 | 7 9 10 10 10 Most Carried 10 | 8 8 10 8 10 Average Carried 7 | 3 6 7 7 9 Final Capacity 10 | 8 10 10 10 10 Final Carried 10 | 4 8 8 8 10 Class Distribution -------------------- 100% | Mutant Dominant Class ---------------- Mutant | -10/Materials Mutant | -10/Mines Mutant | -10/Exiles Mutant | -9/Mines Resources | -11 -10 -10 -10 -9 ----------- Run | Jun Mat Min Exi Min Matter Collected 601 | 260 208 128 . 5 Remotely . | . . . . . Salvage Created 950 | . 480 382 . 88 Parts 58 | . 32 23 . 3 Haulers Intercepted 1 | . 1 . . . Recyclers Shooed . | . . . . . Parts Field Recycled . | . . . . . Retrieved Matter . | . . . . . Parts Self-Destructed . | . . . . . Prevented . | . . . . . Kills | -11 -10 -10 -10 -9 ------- Run | Jun Mat Min Exi Min Combat Hostiles Destroyed 31 | . 14 15 . 2 Guns 12 | . 10 2 . . Cannons 16 | . 3 11 . 2 AOE 3 | . 1 2 . . Classes Destroyed 6 | . 6 . . . Builder 1 | . 1 . . . Hauler 1 | . 1 . . . Mechanic 1 | . 1 . . . Watcher 1 | . 1 . . . Swarmer 15 | . 6 9 . . Grunt 16 | . 8 6 . 2 Best Kill Streak 5 | . 5 3 . 2 Combat Bots Only 3 | . 3 3 . 2 Max Kills in Single Turn 3 | . 3 2 . 1 Gunslinging . | . . . . . Exploded 2 | . 1 2 . . Melee . | . . . . . Uniques/NPCs Destroyed . | . . . . . Combat | -11 -10 -10 -10 -9 -------- Run | Jun Mat Min Exi Min Damage Taken 1194 | . 654 510 . 30 Core 258 | . 128 112 . 18 Absorbed by Shields . | . . . . . Regen/Repaired (Parts) 20 | . 20 . . . Core Remaining (%) 100 | 100 . . . . Volleys Fired 84 | . 55 27 . 2 Largest 2 | . 2 2 . 2 Hottest 136 | . 136 136 . 136 Shots Fired 162 | . 109 49 . 4 Gun 79 | . 72 7 . . Cannon 79 | . 37 38 . 4 Launcher 4 | . . 4 . . Special . | . . . . . Kinetic . | . . . . . Thermal 158 | . 109 45 . 4 Explosive 4 | . . 4 . . Electromagnetic . | . . . . . Robot Hit Streak 9 | . 7 9 . 3 Robot Miss Streak 7 | . 7 1 . 1 Penetration Max . | . . . . . Secondary Targets 3 | . 3 . . . Max Gunslinging Chain 1 | . 1 . . . Shots Hit Robots 88 | . 53 32 . 3 Core Hits 40 | . 17 20 . 3 Critical Kills . | . . . . . Critical Parts Destroyed . | . . . . . Critical Strikes 5 | . 5 . . . Burn 5 | . 5 . . . Melee Attacks . | . . . . . Impact . | . . . . . Slashing . | . . . . . Piercing . | . . . . . Sneak Attacks . | . . . . . Combat Hostiles . | . . . . . Follow-up Attacks . | . . . . . Damage Inflicted 2192 | . 1256 874 . 62 Guns 737 | . 650 87 . . Cannons 963 | . 351 550 . 62 Explosions 492 | . 255 237 . . Melee . | . . . . . Ramming . | . . . . . Kinetic . | . . . . . Thermal 1955 | . 1256 637 . 62 Explosive 237 | . . 237 . . Electromagnetic . | . . . . . Impact . | . . . . . Slashing . | . . . . . Piercing . | . . . . . Highest Corruption . | . . . . . Average Corruption . | . . . . . Corruption Purged . | . . . . . Corruption Blocked . | . . . . . Overload Shots . | . . . . . Overflow Damage 111 | . 108 3 . . Projectiles 27 | . 25 2 . . Explosions 84 | . 83 1 . . Melee . | . . . . . Knockbacks . | . . . . . Impact . | . . . . . Kinetic . | . . . . . Secondary . | . . . . . Self-Inflicted Damage 39 | . . 39 . . Shots 2 | . . 2 . . Rammed . | . . . . . Targets Rammed . | . . . . . Kicked . | . . . . . Crushed . | . . . . . Highest Temperature 506 | . 506 264 . 54 Average Temperature 139 | . 162 82 . 31 Received Heat Transfer 366 | . 195 165 . 6 Effects 11 | . 11 . . . Shutdowns 4 | . 4 . . . Energy Bleed 1 | . 1 . . . Interference 2 | . 2 . . . Matter Decay 2 | . 2 . . . Short Circuit 1 | . 1 . . . Damage (minor) 1 | . 1 . . . Siege Activations . | . . . . . Robots Corrupted . | . . . . . Combat Hostiles . | . . . . . Parts Fried . | . . . . . Impact Corruptions . | . . . . . Robots Melted . | . . . . . Combat Hostiles . | . . . . . Parts Melted 6 | . 4 2 . . Heat Transferred 3850 | . 2555 1184 . 111 Parts Sabotaged . | . . . . . Parts Stolen . | . . . . . Parts Stripped . | . . . . . Power Chain Reactions . | . . . . . Missiles Intercepted . | . . . . . Alert | -11 -10 -10 -10 -9 ------- Run | Jun Mat Min Exi Min Peak Influence 257 | . 257 238 . 50 Initial . | . . . . . Average 73 | . 66 93 . 23 Maximum Alert Level 1 | . 1 1 . . Low Security (%) 92 | 100 93 89 . 100 Level 1 7 | . 6 10 . . Level 2 . | . . . . . Level 3 . | . . . . . Level 4 . | . . . . . Level 5 . | . . . . . High Security . | . . . . . Max Security . | . . . . . Squads Dispatched 3 | . 3 . . . Investigation 1 | . 1 . . . Extermination . | . . . . . Reinforcement 2 | . 2 . . . Assault . | . . . . . Garrison . | . . . . . Intercept . | . . . . . Searches Triggered . | . . . . . Construction Impeded . | . . . . . Haulers Reinforced . | . . . . . Active Scanning Responses . | . . . . . Cargo Convoy Interrupts . | . . . . . Stealth | -11 -10 -10 -10 -9 --------- Run | Jun Mat Min Exi Min Distress Signals 1 | . 1 . . . Communications Jammed . | . . . . . Distress Signals . | . . . . . Times Spotted 59 | . 29 17 . 13 Peak Tracking Total 15 | . 5 4 . 15 Tactical Retreats 3 | . 2 1 . . Traps | -11 -10 -10 -10 -9 ------- Run | Jun Mat Min Exi Min Traps Triggered 1 | . 1 . . . Indirectly . | . . . . . Trap Hack Attempts . | . . . . . Triggered . | . . . . . Disarmed . | . . . . . Reprogrammed . | . . . . . Reused . | . . . . . Traps Extracted . | . . . . . Installed . | . . . . . Triggered . | . . . . . Most Traps Carried 2 | . . . . 2 Machines | -11 -10 -10 -10 -9 ---------- Run | Jun Mat Min Exi Min Machines Disabled 4 | . 3 1 . . Max in Single Turn 2 | . 2 1 . . Machines Repaired . | . . . . . Machines Sabotaged . | . . . . . Overloaded Fab Kills . | . . . . . Hacking | -11 -10 -10 -10 -9 --------- Run | Jun Mat Min Exi Min Machines Accessed 14 | . 9 1 4 . Terminals 7 | . 6 1 . . Fabricators . | . . . . . Repair Stations 1 | . 1 . . . Recycling Units 2 | . 2 . . . Scanalyzers . | . . . . . Garrison Access . | . . . . . Total Hacks 74 | . 23 2 49 . Successful 65 | . 14 2 49 . Failed 9 | . 9 . . . Catastrophic . | . . . . . Database Lockouts . | . . . . . Manual 1 | . . . 1 . Terminals 20 | . 18 2 . . Fabricators . | . . . . . Repair Stations 2 | . 2 . . . Recycling Units 3 | . 3 . . . Scanalyzers . | . . . . . Garrison Access . | . . . . . Terminal Hacks 61 | . 10 2 49 . Record 49 | . . . 49 . Prototype ID Bank 1 | . 1 . . . Alert Level 1 | . 1 . . . Unreport Threat 1 | . 1 . . . Locate Traps 2 | . 2 . . . Dispatch Records 1 | . . 1 . . Maintenance Status 1 | . 1 . . . Transport Status 1 | . 1 . . . Hauler Manifests 1 | . 1 . . . Zone Layout 3 | . 2 1 . . Fabricator Hacks . | . . . . . Repair Station Hacks 2 | . 2 . . . Scan Component 1 | . 1 . . . Repair 1 | . 1 . . . Recycling Unit Hacks 2 | . 2 . . . Report Inventory 2 | . 2 . . . Scanalyzer . | . . . . . Garrison Access Hacks . | . . . . . Unauthorized Hacks . | . . . . . Terminals . | . . . . . Fabricators . | . . . . . Repair Stations . | . . . . . Recycling Units . | . . . . . Scanalyzers . | . . . . . Garrison Access . | . . . . . Data Cores Recovered . | . . . . . Used . | . . . . . Hacking Detections 8 | . 7 1 . . Full Trace Events . | . . . . . Feedback Events . | . . . . . Feedback Blocked . | . . . . . Robot Schematics Acquired . | . . . . . Robots Built . | . . . . . Authchips . | . . . . . Time . | . . . . . Total Robot Build Rating . | . . . . . Part Schematics Acquired . | . . . . . Parts Built . | . . . . . Authchips . | . . . . . Time . | . . . . . Total Part Build Rating . | . . . . . Parts Repaired 1 | . 1 . . . Time 26 | . 26 . . . Parts Recycled . | . . . . . Recycled Matter . | . . . . . Retrieved Matter . | . . . . . Retrieved Components . | . . . . . Parts Scanalyzed . | . . . . . Part Schematics Acquired . | . . . . . Parts Damaged . | . . . . . Bothacking | -11 -10 -10 -10 -9 ------------ Run | Jun Mat Min Exi Min Used RIF Installer . | . . . . . Robots Hacked . | . . . . . Non-combat . | . . . . . Combat . | . . . . . Robot Hacks Applied . | . . . . . Relay Couplers Released . | . . . . . Fabnet Peak Effective % . | . . . . . Robots Rewired . | . . . . . Allies Hacked . | . . . . . Hacks Repelled . | . . . . . Allies | -11 -10 -10 -10 -9 -------- Run | Jun Mat Min Exi Min Total Allies . | . . . . . Largest Group . | . . . . . Highest-Rated Group . | . . . . . Highest-Rated Ally . | . . . . . Total Orders . | . . . . . Ally Attacks . | . . . . . Total Damage . | . . . . . Kills . | . . . . . Allies Corrupted . | . . . . . Allies Melted . | . . . . . Intel | -11 -10 -10 -10 -9 ------- Run | Jun Mat Min Exi Min Robot Analysis Total . | . . . . . Derelict Logs Recovered 2 | . . 1 . 1 Drone Launches . | . . . . . Drone Recoveries . | . . . . . Exploration | -11 -10 -10 -10 -9 ------------- Run | Jun Mat Min Exi Min Turns Passed 3828 | 77 1230 1200 1129 192 Spaces Moved 1879 | 43 567 592 594 83 Core 21 | 21 . . . . Treads 286 | 22 264 . . . Legs 1572 | . 303 592 594 83 Wheels . | . . . . . Hover . | . . . . . Flight . | . . . . . Fastest Speed 50 | 50 120 120 120 190 Average Speed 183 | 143 174 183 189 216 Slowest Speed 260 | 160 240 190 190 260 Overloaded Moves . | . . . . . Propulsion Burnouts . | . . . . . Robots Hopped . | . . . . . Cave-ins Triggered . | . . . . . Exploration Rate (%) 60 | 3 86 96 94 25 Regions Visited 4 Branch Regions 3 Pre-discovered Areas 1 | . . . 1 . Known Exits Taken . | . . . . . Unknown Exits Taken 4 | 1 1 1 1 . Scrap Searched 1 | . . 1 . . Spaces Dug . | . . . . . Terrain Destroyed 67 | . 24 43 . . Melee . | . . . . . Projectile 1 | . . 1 . . AOE 66 | . 24 42 . . Terrain Rammed . | . . . . . Walls Destroyed . | . . . . . Machines Disabled . | . . . . . Actions | -11 -10 -10 -10 -9 --------- Run | Jun Mat Min Exi Min Total 2101 | 58 697 656 597 93 Wait 70 | . 41 23 . 6 Move 1875 | 42 566 591 593 83 Hop . | . . . . . Pick Up 34 | 10 16 4 2 2 Fast Attach . | . . . . . Attach 12 | 6 4 1 1 . Detach . | . . . . . Swap 15 | . 8 7 . . Drop 11 | . 7 3 1 . Fire 84 | . 55 27 . 2 Melee . | . . . . . Ram . | . . . . . Kick . | . . . . . Crush . | . . . . . Escape Stasis . | . . . . . Rewire . | . . . . . Trap . | . . . . . Miscellaneous . | . . . . . Route ------- -11/Junkyard -10/Materials (discovered 4 exits: *Mat x2 / *Min x2) -10/Mines (discovered 3 exits: *Mat x2 / *Exi) -10/Exiles (discovered 2 exits: [*Min x2]) -9/Mines History --------- Turn | Location | Event 2 | -11/Junkyard | Met Revision 17 21 | -11/Junkyard | Discovered new exit (range 14) 78 | -11/Junkyard | Entered Materials 316 | -10/Materials | Build established: Mutant 461 | -10/Materials | Core integrity fell below 50% 675 | -10/Materials | Discovered new exit (range 15) 907 | -10/Materials | Discovered new exit (range 6) 1012 | -10/Materials | Discovered new exit (range 11) 1199 | -10/Materials | Discovered new exit (range 12) 1212 | -10/Materials | Repaired Med. Storage Unit 1308 | -10/Materials | Entered Mines 1336 | -10/Mines | Deemed a non-threat by the Exiles lab entrance 1338 | -10/Mines | Discovered new exit (range 5) 1366 | -10/Mines | Received a Rocket Launcher from a helpful Derelict 1663 | -10/Mines | Discovered new exit (range 14) 1893 | -10/Mines | Identified exit to Materials 1948 | -10/Mines | Core integrity fell below 20% 2508 | -10/Mines | Entered Exiles 2561 | -10/Exiles | Met 8R-AWN 2597 | -10/Exiles | Met EX-HEX 2682 | -10/Exiles | Met EX-DEC 2720 | -10/Exiles | Visited The Gauntlet 2981 | -10/Exiles | Learned location of Zion (-6) 3059 | -10/Exiles | Discovered new exit (range 14) 3211 | -10/Exiles | Met EX-BIN 3380 | -10/Exiles | Aligned with FarCom system 3382 | -10/Exiles | Given EX-Vault access code 3425 | -10/Exiles | Opened EX-Vault 3435 | -10/Exiles | Found Prototype Device 3474 | -10/Exiles | Warned to stay clear of 0b10 Research branches 3614 | -10/Exiles | Discovered new exit (range 14) 3637 | -10/Exiles | Left Exiles lab with Chronowheel 3637 | -10/Exiles | Entered Mines 3694 | -9/Mines | Found a hidden stash of uninstalled traps 3717 | -9/Mines | Learned Materials stockpile data 3814 | -9/Mines | Assembled infested the area 3819 | -9/Mines | Assisted by a Guerilla fighting off Assembled 3829 | -9/Mines | Destroyed by as-98079 with Assembled Heavy Rifle Last Messages --------------- 03736_ Aluminum Leg destroyed. 03736_ G-34 Mercenary destroyed. 03743_ G-47 Trooper destroyed. 03746_ Acquired 5 matter. 03791_ K-01 Serf cleans the Pressure Siphon. 03805_ K-01 Serf collects debris. 03809_ K-01 Serf cleans the Pressure Siphon. 03814_ ALERT: Infestation in the mines, dispatching Demolisher response squad. 03819_ A derelict emerges from the shadows: "You need to get out of here! I've been tracking a group of Assembled to figure out where they're coming from, and they're closing on this area, come on!" 03821_ V7-S36(h): "I'll hold them off! Go on ahead or try to find another way!" 03821_ HV Slug penetrates Wall. 03823_ HV Slug penetrates as-98443. 03823_ HV Slug penetrates Wall. 03826_ as-98443 suffers critical hit (Destroy). 03826_ as-98443 destroyed. 03828_ V7-S36(h) destroyed. Map ----- +----------------------------------------------------+ | ### #???? #?? ##???????????????????????????? | | #?# #???? #?# ##??????????????????????????? | | ### #???? ## #??????????????????????????? | | #???? # ?????????????????????????? | | ##??? ?????????????????????????? | | ### #### ????????????????????????? | | ????????????????????????? | | ????????????????????????? | | ## ##%## ????????????????????????? | | ### ## #????? ##??????????????????????????? | | ##?# ## #???????????????????????????????????? | | # ##??# ## #???????????????????????????????????? | | #####???# ##=###?????????????????????????????????? | | ????????# [%! #?????????????????????????????????? | | ????????# #### #?????????????????????????????????? | | ????????# #??# #?????????????????????????????????? | | ????????# #??# #?????????????????????????????????? | | ????????# #??# #?????????????????????????????????? | | ????????# ??# #?????????????????????????????????? | | ????????###??# #?????????????????????????????????? | | ?????????????# #?#####???????????????????????????? | | ???????????C?# ### ##??????????????????????????? | | ?????????????# ## ####???????????????????????? | | ?????????????# ## ##??????????????????????? | | ?????????????# ##?????????????????????? | | ?????????????##### """@]########??????????????? | | ?????????????????## """=%aaaa #????????? | | ??????????????????## """ = aaaa%% #????????? | | ???????????????????# """ #;;%###"" ???????? | | ??????????????????# ##?###???????????????? | | ?????????????????# ########????????????????????? | | ????????????????# ##???????????????????????????? | | ???????????????# ?????????????????????????????? | | ???????????????# ?????????????????????????????? | | ???????????????# #?????????????????????????????? | | ??????????????? ??????????????????????????????? | | ?????????????? ??????????????????????????????? | | ????????????? # ??????????????????????????????? | | ???????????? ## ??????????????????????????????? | | ???????????# ??# ??????????????????????????????? | | ???????????????## ???????????????????????????????? | | ?????????????????????????????????????????????????? | | ?????????????????????????????????????????????????? | | ?????????????????????????????????????????????????? | | ?????????????????????????????????????????????????? | | ?????????????????????????????????????????????????? | | ?????????????????????????????????????????????????? | | ?????????????????????????????????????????????????? | | ?????????????????????????????????????????????????? | | ?????????????????????????????????????????????????? | +----------------------------------------------------+ Best States ------------- Heat Dissipation 35 Energy Generation 12 Energy Capacity 265 Matter Stores 300 Matter Capacity 300 Sight Range 16 Terrain Scan Density 10 Evasion (%) 55 Recoil Reduction 2 Item Schematics ----------------- None Robot Schematics ------------------ None Fabricated ------------ Nothing Alien Tech Used ----------------- None Achievements -------------- None Challenges ------------ None Game ------ Seed ControlSmartbombMatter Manual? 0 Play Time 00:48:27 Cumulative 18.1 hours Start 2024.02.20 @ 22:17:10 End 2024.02.20 @ 23:11:45 Sessions 1 Manual Loads 0 Difficulty Rogue Special Mode None Game No. 22 Rogue 22 Adventurer 0 Explorer 0 Win Type - Total 0 Types 0/0/0/0/0/0/0/0/0 Lore% 20 Gallery% 18 Achievement% 16 Wizard Run 0 Options --------- ASCII 0 Keyboard 0 Movement Numpad Keybinds 0 Fullscreen 1 Font 24/Smallcaps Map View 76x50 Tactical HUD 1 Map Filters NONE Filters NONE Steam 1 RUN: 87185502-a908-4f71-8aaa-9e14c8d2c588